[Event "12th Arad Open 2019"]
[Site "Arad"]
[Date "2019.07.31"]
[Round "9.9"]
[White "Secheres, Adrian-Simion"]
[Black "Ciorgovean, Iustin"]
[Result "1-0"]
[ECO "B52"]
[WhiteElo "2394"]
[BlackElo "2330"]
[Annotator "NA"]
[PlyCount "97"]
[EventDate "2019.07.24"]
[EventType "swiss"]
[EventCountry "ROU"]
[SourceTitle "playchess.com"]
[Source "ChessBase"]
[SourceQuality "1"]
[TimeControl "40/5400+30:900+30"]

1. e4 {[%emt 0:04:30]} c5 {[%emt 0:00:00]} 2. Nf3 {[%emt 0:00:17]} d6 {[%emt 0:00:00]} 3. Bb5+ {[%emt 0:00:18]} Bd7 {[%emt 0:00:00]} 4. Bxd7+ {[%emt 0:00:08]} Qxd7 {[%emt 0:00:00]} 5. c4 {[%emt 0:00:08]} Nc6 {[%emt 0:01:02]} 6. Nc3 {[%emt 0:00:35]} g6 {[%emt 0:01:10]} 7. d4 {[%emt 0:00:16]} cxd4 {[%emt 0:00:04]} 8. Nxd4 {[%emt 0:00:07]} Bg7 {[%emt 0:00:16]} 9. Nde2 {[%emt 0:00:31]} Nf6 {[%emt 0:02:26]} 10. f3 {[%emt 0:00:50]} O-O {[%emt 0:02:19]} 11. Be3 {[%emt 0:04:04]} e6 {[%emt 0:18:28]} 12. Qd2 {[%emt 0:09:54]} Rad8 {[%emt 0:11:36]} 13. Rd1 {[%emt 0:04:09]} b6 {[%emt 0:05:42]} 14. O-O {[%emt 0:05:44]} Qb7 {[%emt 0:01:24]} 15. Bg5 {[%emt 0:06:04]} Rd7 {[%emt 0:04:45]} 16. b3 {[%emt 0:08:59]} a6 {[%emt 0:03:27]} 17. Qf4 {[%emt 0:08:20]} Ne8 {[%emt 0:00:29]} 18. Qe3 {[%emt 0:07:55]} b5 {[%emt 0:05:23]} 19. cxb5 {[%emt 0:01:18]} axb5 {[%emt 0:00:13]} 20. Rd2 {[%emt 0:00:18]} Bf6 {[%emt 0:11:21]} 21. Bxf6 {[%emt 0:05:16]} Nxf6 {[%emt 0:00:05]} 22. Qg5 {[%emt 0:01:02]} Kg7 {[%emt 0:00:18]} 23. Qxb5 {[%emt 0:00:54]} Qxb5 {[%emt 0:01:10]} 24. Nxb5 {[%emt 0:00:07]} d5 {[%emt 0:00:10]} 25. Rc1 {[%emt 0:04:41]} Ne5 {[%emt 0:01:42]} 26. exd5 {[%emt 0:02:03]} Nxd5 {[%emt 0:00:19]} 27. Rd4 {[%emt 0:03:54]} Rb7 {[%emt 0:03:32]} 28. a4 {[%emt 0:02:31]} g5 {[%emt 0:01:50]} 29. h3 {[%emt 0:05:43]} h5 {[%emt 0:00:53]} 30. Ng3 {[%emt 0:03:21]} Nf4 {[%emt 0:02:39]} 31. Re1 {[%emt 0:01:28]} Nxh3+ {[%emt 0:01:59]} 32. Kh2 {[%emt 0:01:05]} Nc6 {[%emt 0:03:51]} 33. Rd6 {[%emt 0:00:55]} Na5 {[%emt 0:02:19]} 34. gxh3 {[%emt 0:01:02]} Nxb3 {[%emt 0:00:14]} 35. Ne4 {[%emt 0:01:25]} Rc8 {[%emt 0:01:37]} 36. Rg1 {[%emt 0:02:28]} Rc2+ {[%emt 0:01:29]} 37. Rg2 {[%emt 0:00:18]} Rc4 {[%emt 0:01:25]} 38. Nxg5 {[%emt 0:01:28]} Kf8 {[%emt 0:00:24]} 39. Ra6 {[%emt 0:02:33]} Rd7 {[%emt 0:04:51]} 40. Nd6 {[%emt 0:00:00]} Rf4 {[%emt 0:00:00]} 41. Rb2 {[%emt 0:11:35]} Nc5 {[%emt 0:04:56]} 42. Rc6 {[%emt 0:01:59]} Nxa4 {[%emt 0:01:42]} 43. Rb8+ {[%emt 0:01:12]} Kg7 {[%emt 0:00:29]} 44. Nge4 {[%emt 0:01:47]} Rxf3 {[%emt 0:02:49]} 45. Rc2 {[%emt 0:00:41]} f6 {[%emt 0:01:39]} 46. Rg2+ {[%emt 0:00:17]} Kh7 {[%emt 0:01:23]} 47. Rf8 {[%emt 0:01:34]} Nc3 {[%emt 0:05:29]} 48. Nxc3 {[%emt 0:00:14]} Rg7 {[%emt 0:02:47]} 49. Nce4 {[%emt 0:01:14]} 1-0

[Event "12th Arad Open 2019"]
[Site "Arad"]
[Date "2019.07.31"]
[Round "9.10"]
[White "Talu, Mircea"]
[Black "Banzea, Alexandru-Bogdan"]
[Result "0-1"]
[ECO "D71"]
[WhiteElo "2278"]
[BlackElo "2405"]
[Annotator "NA"]
[PlyCount "132"]
[EventDate "2019.07.24"]
[EventType "swiss"]
[EventCountry "ROU"]
[SourceTitle "playchess.com"]
[Source "ChessBase"]
[SourceQuality "1"]
[TimeControl "40/5400+30:900+30"]

1. d4 {[%emt 0:03:19]} Nf6 {[%emt 0:00:00]} 2. c4 {[%emt 0:00:05]} g6 {[%emt 0:00:00]} 3. g3 {[%emt 0:00:06]} Bg7 {[%emt 0:00:00]} 4. Bg2 {[%emt 0:00:06]} O-O {[%emt 0:00:00]} 5. Nc3 {[%emt 0:00:06]} d6 {[%emt 0:00:00]} 6. Nf3 {[%emt 0:00:05]} c6 {[%emt 0:00:00]} 7. O-O {[%emt 0:00:06]} Na6 {[%emt 0:00:02]} 8. h3 {[%emt 0:08:30]} Qb6 {[%emt 0:01:57]} 9. e4 {[%emt 0:10:12]} e5 {[%emt 0:00:07]} 10. dxe5 {[%emt 0:01:41]} dxe5 {[%emt 0:00:07]} 11. Qe2 {[%emt 0:00:07]} Nc5 {[%emt 0:04:37]} 12. Be3 {[%emt 0:02:49]} Qa5 {[%emt 0:04:32]} 13. Nd2 {[%emt 0:10:29]} Ne6 {[%emt 0:05:10]} 14. Rfd1 {[%emt 0:01:25]} Nd7 {[%emt 0:04:48]} 15. Nb3 {[%emt 0:11:25]} Qb4 {[%emt 0:04:11]} 16. Bf1 {[%emt 0:09:37]} a5 {[%emt 0:02:12]} 17. Qc2 {[%emt 0:10:37]} a4 {[%emt 0:01:21]} 18. Nc1 {[%emt 0:00:08]} Nd4 {[%emt 0:00:53]} 19. Bxd4 {[%emt 0:00:24]} exd4 {[%emt 0:00:08]} 20. N3e2 {[%emt 0:00:03]} a3 {[%emt 0:04:51]} 21. b3 {[%emt 0:01:56]} Qe7 {[%emt 0:02:16]} 22. Rb1 {[%emt 0:02:29]} Nc5 {[%emt 0:07:41]} 23. Bg2 {[%emt 0:00:05]} f5 {[%emt 0:00:51]} 24. Nxd4 {[%emt 0:00:17]} fxe4 {[%emt 0:10:27]} 25. Nce2 {[%emt 0:09:36]} Nd3 {[%emt 0:03:33]} 26. Rxd3 {[%emt 0:06:10]} exd3 {[%emt 0:00:05]} 27. Qxd3 {[%emt 0:00:04]} Rd8 {[%emt 0:01:43]} 28. Rd1 {[%emt 0:00:08]} Bf5 {[%emt 0:00:42]} 29. Nxf5 {[%emt 0:01:06]} gxf5 {[%emt 0:00:05]} 30. Qc2 {[%emt 0:00:05]} Rxd1+ {[%emt 0:00:13]} 31. Qxd1 {[%emt 0:00:03]} Rd8 {[%emt 0:00:27]} 32. Qc2 {[%emt 0:00:11]} Qd7 {[%emt 0:00:27]} 33. Bf1 {[%emt 0:00:45]} Qd2 {[%emt 0:01:00]} 34. Qxf5 {[%emt 0:00:38]} Qxa2 {[%emt 0:01:12]} 35. Nf4 {[%emt 0:00:09]} Qa1 {[%emt 0:01:11]} 36. Qe6+ {[%emt 0:02:01]} Kh8 {[%emt 0:00:19]} 37. Qe7 {[%emt 0:00:55]} Qf6 {[%emt 0:00:31]} 38. Qxa3 {[%emt 0:00:08]} Qd6 {[%emt 0:01:32]} 39. Qxd6 {[%emt 0:05:04]} Rxd6 {[%emt 0:00:01]} 40. b4 {[%emt 0:00:00]} Rd2 {[%emt 0:00:00]} 41. b5 {[%emt 0:01:26]} c5 {[%emt 0:10:35]} 42. Kg2 {[%emt 0:06:40]} Bd4 {[%emt 0:01:28]} 43. Ne2 {[%emt 0:06:52]} b6 {[%emt 0:09:02]} 44. Nxd4 {[%emt 0:03:22]} cxd4 {[%emt 0:00:02]} 45. Kf3 {[%emt 0:00:12]} Rd1 {[%emt 0:00:33]} 46. Be2 {[%emt 0:00:02]} Re1 {[%emt 0:00:14]} 47. Bd3 {[%emt 0:00:02]} Kg7 {[%emt 0:00:17]} 48. Be4 {[%emt 0:00:50]} h6 {[%emt 0:00:11]} 49. Kf4 {[%emt 0:02:26]} Kf6 {[%emt 0:00:22]} 50. Bd3 {[%emt 0:02:59]} Ke6 {[%emt 0:00:58]} 51. g4 {[%emt 0:01:20]} Kd6 {[%emt 0:02:39]} 52. h4 {[%emt 0:00:56]} Rh1 {[%emt 0:00:16]} 53. h5 {[%emt 0:00:14]} Rh3 {[%emt 0:00:50]} 54. Bg6 {[%emt 0:00:29]} d3 {[%emt 0:02:48]} 55. g5 {[%emt 0:00:07]} d2 {[%emt 0:02:16]} 56. Bc2 {[%emt 0:00:04]} Rc3 {[%emt 0:02:09]} 57. Bd1 {[%emt 0:00:08]} hxg5+ {[%emt 0:00:19]} 58. Kxg5 {[%emt 0:00:31]} Rc1 {[%emt 0:00:04]} 59. Be2 {[%emt 0:00:26]} Re1 {[%emt 0:04:05]} 60. Bf3 {[%emt 0:00:09]} Ke5 {[%emt 0:02:12]} 61. h6 {[%emt 0:01:16]} Rg1+ {[%emt 0:00:40]} 62. Kh5 {[%emt 0:01:45]} Kf4 {[%emt 0:00:30]} 63. Be2 {[%emt 0:00:15]} Kf5 {[%emt 0:01:54]} 64. Bd3+ {[%emt 0:00:32]} Kf6 {[%emt 0:00:06]} 65. Be2 {[%emt 0:00:43]} d1=Q {[%emt 0:00:27]} 66. Bxd1 {[%emt 0:00:06]} Rxd1 {[%emt 0:00:03]} 0-1

[Event "12th Arad Open 2019"]
[Site "Arad"]
[Date "2019.07.31"]
[Round "9.11"]
[White "Pop, Alexandru"]
[Black "Song, Raymond"]
[Result "1-0"]
[ECO "A10"]
[WhiteElo "2276"]
[BlackElo "2456"]
[Annotator "ChessBase"]
[PlyCount "125"]
[EventDate "2019.07.24"]
[EventType "swiss"]
[EventCountry "ROU"]
[SourceTitle "playchess.com"]
[Source "ChessBase"]
[SourceQuality "1"]
[TimeControl "40/5400+30:900+30"]

1. c4 f5 2. Nf3 Nf6 3. Nc3 d6 4. d4 g6 5. e3 Bg7 6. Be2 O-O 7. O-O c6 8. b4 e5 9. Bb2 e4 10. Nd2 Na6 11. b5 Nc7 12. a4 Ne6 13. a5 c5 14. Nb3 Bd7 15. f3 Rc8 16. dxc5 dxc5 17. f4 h5 18. Qd2 Rf7 19. Rfd1 Qf8 20. Nd5 Ne8 21. h4 Nd8 22. Qc2 Be6 23. Bxg7 Qxg7 24. Nc3 Rd7 25. Na4 Qe7 26. Qb2 Rxd1+ 27. Rxd1 Qxh4 28. Naxc5 Bf7 29. Bf1 Nf6 30. Be2 Be8 31. Qe5 b6 32. Nb7 Nf7 33. Qe6 Bd7 34. Rxd7 Qe1+ 35. Kh2 Qh4+ 36. Kg1 Qe1+ 37. Bf1 Qxe3+ 38. Kh1 Nxd7 39. Nd6 Kg7 40. Qxf7+ Kh6 41. Qxd7 Qxf4 42. Nf7+ Kg7 43. Nd8+ Kh6 44. Qg7+ Kxg7 45. Ne6+ Kf6 46. Nxf4 Rd8 47. Nd5+ Ke5 48. Kg1 f4 49. Nxb6 Rd1 50. Nd5 Rb1 51. Nc5 g5 52. Nxe4 g4 53. Nef6 f3 54. gxf3 gxf3 55. Nxh5 Kd4 56. Nhf4 Rb2 57. Ne6+ Ke5 58. Ng5 f2+ 59. Kg2 Kd4 60. Ne6+ Ke5 61. Nd8 Kd6 62. a6 Kc5 63. Nc6 1-0

[Event "12th Arad Open 2019"]
[Site "Arad"]
[Date "2019.07.31"]
[Round "9.12"]
[White "Dicu, Razvan-Stefan"]
[Black "Petrisor, Adrian-Marian"]
[Result "1/2-1/2"]
[ECO "C67"]
[WhiteElo "2286"]
[BlackElo "2422"]
[Annotator "NA"]
[PlyCount "40"]
[EventDate "2019.07.24"]
[EventType "swiss"]
[EventCountry "ROU"]
[SourceTitle "playchess.com"]
[Source "ChessBase"]
[SourceQuality "1"]
[TimeControl "40/5400+30:900+30"]

1. e4 {[%emt 0:07:13]} e5 {[%emt 0:00:00]} 2. Nf3 {[%emt 0:00:07]} Nc6 {[%emt 0:00:00]} 3. Bb5 {[%emt 0:00:08]} Nf6 {[%emt 0:00:00]} 4. O-O {[%emt 0:00:23]} Nxe4 {[%emt 0:00:32]} 5. d4 {[%emt 0:00:30]} Nd6 {[%emt 0:00:07]} 6. Bxc6 {[%emt 0:01:14]} dxc6 {[%emt 0:00:06]} 7. dxe5 {[%emt 0:00:11]} Nf5 {[%emt 0:00:05]} 8. Qxd8+ {[%emt 0:00:07]} Kxd8 {[%emt 0:00:03]} 9. Nc3 {[%emt 0:00:18]} Ke8 {[%emt 0:02:34]} 10. Rd1 {[%emt 0:01:36]} Be7 {[%emt 0:00:54]} 11. Ne2 {[%emt 0:00:45]} Nh4 {[%emt 0:08:58]} 12. Nxh4 {[%emt 0:22:33]} Bxh4 {[%emt 0:01:52]} 13. Be3 {[%emt 0:00:10]} Be7 {[%emt 0:03:29]} 14. Rd2 {[%emt 0:04:31]} Be6 {[%emt 0:01:39]} 15. Nd4 {[%emt 0:01:23]} Bd7 {[%emt 0:03:41]} 16. Rad1 {[%emt 0:03:32]} Rd8 {[%emt 0:00:41]} 17. c4 {[%emt 0:06:02]} a6 {[%emt 0:06:53]} 18. Nb3 {[%emt 0:01:01]} Bc8 {[%emt 0:03:08]} 19. Rxd8+ {[%emt 0:07:15]} Bxd8 {[%emt 0:00:08]} 20. Na5 {[%emt 0:00:08]} Be7 {[%emt 0:09:00]} 1/2-1/2

[Event "12th Arad Open 2019"]
[Site "Arad"]
[Date "2019.07.31"]
[Round "9.13"]
[White "Zawadzka, Jolanta"]
[Black "Kelly, Ladislau-Endre"]
[Result "1-0"]
[ECO "B01"]
[WhiteElo "2422"]
[BlackElo "2182"]
[Annotator "NA"]
[PlyCount "69"]
[EventDate "2019.07.24"]
[EventType "swiss"]
[EventCountry "ROU"]
[SourceTitle "playchess.com"]
[Source "ChessBase"]
[SourceQuality "1"]
[TimeControl "40/5400+30:900+30"]

1. e4 {[%emt 0:00:00]} d5 {[%emt 0:10:34]} 2. exd5 {[%emt 0:00:00]} Nf6 {[%emt 0:00:04]} 3. Nf3 {[%emt 0:00:09]} Bg4 {[%emt 0:00:20]} 4. Bb5+ {[%emt 0:00:26]} Nbd7 {[%emt 0:01:05]} 5. h3 {[%emt 0:01:25]} Bh5 {[%emt 0:01:31]} 6. c4 {[%emt 0:02:35]} a6 {[%emt 0:00:22]} 7. Ba4 {[%emt 0:11:57]} b5 {[%emt 0:00:45]} 8. cxb5 {[%emt 0:12:13]} Nxd5 {[%emt 0:00:30]} 9. d4 {[%emt 0:01:55]} e6 {[%emt 0:02:03]} 10. Nc3 {[%emt 0:02:40]} Bb4 {[%emt 0:02:25]} 11. Bd2 {[%emt 0:02:27]} O-O {[%emt 0:01:07]} 12. O-O {[%emt 0:02:31]} N7b6 {[%emt 0:06:00]} 13. Nxd5 {[%emt 0:09:01]} Nxd5 {[%emt 0:02:01]} 14. Bxb4 {[%emt 0:05:06]} Nxb4 {[%emt 0:00:10]} 15. Qb3 {[%emt 0:01:38]} Nd5 {[%emt 0:01:40]} 16. Qd3 {[%emt 0:09:02]} Nf4 {[%emt 0:04:11]} 17. Qe4 {[%emt 0:00:47]} Qf6 {[%emt 0:06:19]} 18. Ne5 {[%emt 0:03:37]} Rad8 {[%emt 0:01:13]} 19. Kh2 {[%emt 0:06:44]} axb5 {[%emt 0:27:25]} 20. Bxb5 {[%emt 0:03:06]} Qh6 {[%emt 0:05:52]} 21. a4 f6 22. Nc6 {[%emt 0:01:40]} Rd6 {[%emt 0:10:22]} 23. Rfc1 {[%emt 0:02:04]} Kh8 {[%emt 0:01:17]} 24. a5 {[%emt 0:02:16]} e5 {[%emt 0:00:13]} 25. a6 {[%emt 0:04:19]} f5 {[%emt 0:00:15]} 26. Qxe5 {[%emt 0:01:18]} Rg6 {[%emt 0:04:56]} 27. Bf1 {[%emt 0:07:43]} Be2 {[%emt 0:02:50]} 28. Qe7 {[%emt 0:00:59]} Kg8 {[%emt 0:02:45]} 29. Qe3 {[%emt 0:03:35]} Bxf1 {[%emt 0:01:05]} 30. Ne7+ {[%emt 0:00:22]} Kh8 {[%emt 0:02:44]} 31. Nxg6+ {[%emt 0:00:08]} Qxg6 {[%emt 0:00:04]} 32. Qg3 {[%emt 0:01:06]} Bxg2 {[%emt 0:01:28]} 33. Qxf4 {[%emt 0:00:18]} Bxh3 {[%emt 0:01:01]} 34. Kxh3 {[%emt 0:00:49]} Rf6 {[%emt 0:00:44]} 35. Rc3 {[%emt 0:01:00]} 1-0

[Event "12th Arad Open 2019"]
[Site "Arad"]
[Date "2019.07.31"]
[Round "9.14"]
[White "Martinovici, Ilie"]
[Black "Lyell, Mark"]
[Result "1-0"]
[ECO "D23"]
[WhiteElo "2407"]
[BlackElo "2216"]
[Annotator "NA"]
[PlyCount "91"]
[EventDate "2019.07.24"]
[EventType "swiss"]
[EventCountry "ROU"]
[SourceTitle "playchess.com"]
[Source "ChessBase"]
[SourceQuality "1"]
[TimeControl "40/5400+30:900+30"]

1. d4 {[%emt 0:00:00]} d5 {[%emt 0:00:02]} 2. c4 {[%emt 0:00:00]} dxc4 {[%emt 0:00:21]} 3. Nf3 {[%emt 0:00:00]} Nf6 {[%emt 0:00:07]} 4. Qa4+ {[%emt 0:00:57]} Nc6 {[%emt 0:03:20]} 5. Nc3 {[%emt 0:03:08]} Nd5 {[%emt 0:02:22]} 6. Qxc4 {[%emt 0:03:02]} Ndb4 {[%emt 0:09:18]} 7. Qb3 {[%emt 0:00:12]} e5 {[%emt 0:02:03]} 8. d5 {[%emt 0:10:57]} Nd4 {[%emt 0:03:54]} 9. Nxd4 {[%emt 0:00:46]} exd4 {[%emt 0:00:04]} 10. Nb5 {[%emt 0:00:11]} c6 {[%emt 0:09:14]} 11. Nxd4 {[%emt 0:01:17]} Qxd5 {[%emt 0:01:36]} 12. Qxd5 {[%emt 0:00:21]} Nxd5 {[%emt 0:00:21]} 13. e4 {[%emt 0:02:38]} Bb4+ {[%emt 0:01:47]} 14. Bd2 {[%emt 0:00:12]} Bxd2+ {[%emt 0:00:27]} 15. Kxd2 {[%emt 0:00:06]} Nf4 {[%emt 0:00:57]} 16. Ke3 {[%emt 0:02:18]} Ne6 {[%emt 0:00:32]} 17. Nf5 {[%emt 0:02:30]} g6 {[%emt 0:02:17]} 18. Nd6+ {[%emt 0:01:06]} Ke7 {[%emt 0:00:03]} 19. Rd1 {[%emt 0:02:06]} Rd8 {[%emt 0:01:47]} 20. e5 {[%emt 0:01:01]} Ng7 {[%emt 0:02:32]} 21. Bd3 {[%emt 0:02:00]} Ne8 {[%emt 0:04:25]} 22. Nxc8+ {[%emt 0:01:35]} Raxc8 {[%emt 0:00:17]} 23. Bc4 {[%emt 0:01:13]} Nc7 {[%emt 0:01:30]} 24. f4 {[%emt 0:01:20]} b5 {[%emt 0:02:09]} 25. Bb3 {[%emt 0:08:27]} c5 {[%emt 0:00:57]} 26. Rxd8 {[%emt 0:00:15]} Rxd8 {[%emt 0:00:06]} 27. Rd1 {[%emt 0:00:05]} Rxd1 {[%emt 0:04:04]} 28. Bxd1 {[%emt 0:00:02]} Ke6 {[%emt 0:17:19]} 29. Ke4 {[%emt 0:01:25]} f5+ {[%emt 0:00:08]} 30. exf6 {[%emt 0:00:24]} Kxf6 {[%emt 0:00:09]} 31. Be2 {[%emt 0:00:46]} a5 {[%emt 0:08:23]} 32. g4 {[%emt 0:00:28]} Ke6 {[%emt 0:07:09]} 33. g5 {[%emt 0:02:15]} Kd6 {[%emt 0:04:20]} 34. f5 {[%emt 0:02:39]} a4 {[%emt 0:03:40]} 35. a3 {[%emt 0:05:08]} b4 {[%emt 0:04:49]} 36. f6 {[%emt 0:03:30]} Ne6 {[%emt 0:01:12]} 37. h4 {[%emt 0:01:24]} bxa3 {[%emt 0:01:48]} 38. bxa3 {[%emt 0:00:05]} Nd4 {[%emt 0:00:11]} 39. Bd1 {[%emt 0:02:46]} Nb5 {[%emt 0:00:12]} 40. Kd3 {[%emt 0:00:00]} Nxa3 {[%emt 0:00:00]} 41. Bxa4 {[%emt 0:00:22]} Ke6 {[%emt 0:10:51]} 42. Bb3+ {[%emt 0:01:57]} Kd6 {[%emt 0:00:17]} 43. Bc4 {[%emt 0:01:21]} Kd7 {[%emt 0:00:51]} 44. Ba6 {[%emt 0:00:16]} Ke6 {[%emt 0:06:53]} 45. Kc3 {[%emt 0:00:08]} h6 {[%emt 0:01:13]} 46. Kb2 {[%emt 0:00:09]} 1-0

[Event "12th Arad Open 2019"]
[Site "Arad"]
[Date "2019.07.31"]
[Round "9.15"]
[White "Vasiesiu, Victor"]
[Black "Ahlander, Bjorn"]
[Result "0-1"]
[ECO "B24"]
[WhiteElo "2269"]
[BlackElo "2391"]
[Annotator "NA"]
[PlyCount "90"]
[EventDate "2019.07.24"]
[EventType "swiss"]
[EventCountry "ROU"]
[SourceTitle "playchess.com"]
[Source "ChessBase"]
[SourceQuality "1"]
[TimeControl "40/5400+30:900+30"]

1. e4 {[%emt 0:00:00]} c5 {[%emt 0:00:00]} 2. Nc3 {[%emt 0:00:03]} Nc6 {[%emt 0:00:03]} 3. Bb5 {[%emt 0:00:39]} Nd4 {[%emt 0:01:02]} 4. Bc4 {[%emt 0:00:07]} e6 {[%emt 0:01:05]} 5. Nge2 {[%emt 0:00:54]} a6 {[%emt 0:00:09]} 6. d3 {[%emt 0:00:29]} b5 {[%emt 0:03:32]} 7. Bb3 {[%emt 0:00:31]} Nxb3 {[%emt 0:00:49]} 8. axb3 {[%emt 0:00:05]} b4 {[%emt 0:01:08]} 9. Na4 {[%emt 0:03:28]} Bb7 {[%emt 0:03:20]} 10. O-O {[%emt 0:02:37]} Nf6 {[%emt 0:00:04]} 11. f4 {[%emt 0:00:40]} d5 {[%emt 0:11:05]} 12. e5 {[%emt 0:00:48]} Ng4 {[%emt 0:05:02]} 13. d4 {[%emt 0:01:25]} Rc8 {[%emt 0:03:17]} 14. Nxc5 {[%emt 0:04:32]} Rxc5 {[%emt 0:07:58]} 15. dxc5 {[%emt 0:01:23]} Bxc5+ {[%emt 0:00:03]} 16. Nd4 {[%emt 0:01:34]} Qh4 {[%emt 0:00:53]} 17. h3 {[%emt 0:00:43]} h5 {[%emt 0:00:11]} 18. c3 {[%emt 0:24:35]} bxc3 {[%emt 0:01:25]} 19. bxc3 {[%emt 0:00:03]} Qg3 {[%emt 0:09:36]} 20. hxg4 {[%emt 0:00:04]} Qxc3 {[%emt 0:03:34]} 21. Ra4 {[%emt 0:00:03]} hxg4 {[%emt 0:01:18]} 22. Re1 {[%emt 0:02:13]} Qg3 {[%emt 0:08:12]} 23. Be3 {[%emt 0:14:21]} Bc6 {[%emt 0:08:24]} 24. Qd2 {[%emt 0:15:20]} Bxa4 {[%emt 0:25:37]} 25. bxa4 {[%emt 0:00:35]} Rh2 {[%emt 0:00:39]} 26. Rd1 {[%emt 0:06:55]} Qh4 {[%emt 0:02:05]} 27. Kf1 {[%emt 0:00:05]} g3 {[%emt 0:01:09]} 28. Nf3 {[%emt 0:02:21]} Bxe3 {[%emt 0:00:26]} 29. Qxe3 {[%emt 0:03:16]} Rh1+ {[%emt 0:00:16]} 30. Ng1 {[%emt 0:00:43]} g5 {[%emt 0:00:26]} 31. Rb1 {[%emt 0:06:57]} Kf8 {[%emt 0:00:43]} 32. Rb4 {[%emt 0:01:14]} Qh5 {[%emt 0:01:15]} 33. Rd4 {[%emt 0:02:04]} Qh7 {[%emt 0:00:31]} 34. Qd3 {[%emt 0:03:15]} Qh2 {[%emt 0:00:03]} 35. Qe3 {[%emt 0:00:06]} Qh7 {[%emt 0:00:03]} 36. Qd3 {[%emt 0:01:07]} Rxg1+ {[%emt 0:01:30]} 37. Kxg1 {[%emt 0:00:09]} Qh2+ {[%emt 0:00:05]} 38. Kf1 {[%emt 0:00:04]} Qh1+ {[%emt 0:00:05]} 39. Ke2 {[%emt 0:00:05]} Qxg2+ {[%emt 0:00:07]} 40. Kd1 {[%emt 0:00:00]} Qh1+ {[%emt 0:00:00]} 41. Kc2 {[%emt 0:09:24]} g2 {[%emt 0:00:55]} 42. Qa3+ {[%emt 0:00:17]} Kg7 {[%emt 0:01:28]} 43. Qe7 {[%emt 0:00:10]} g1=Q {[%emt 0:00:47]} 44. Qf6+ {[%emt 0:00:11]} Kg8 {[%emt 0:00:29]} 45. Qd8+ {[%emt 0:01:04]} Kh7 {[%emt 0:00:19]} 0-1

[Event "12th Arad Open 2019"]
[Site "Arad"]
[Date "2019.07.31"]
[Round "9.16"]
[White "Peptan, Corina-Isabela"]
[Black "Anuta, Elefterie-Laurentiu"]
[Result "1-0"]
[ECO "A53"]
[WhiteElo "2375"]
[BlackElo "1813"]
[Annotator "NA RC"]
[PlyCount "83"]
[EventDate "2019.07.24"]
[EventType "swiss"]
[EventCountry "ROU"]
[SourceTitle "playchess.com"]
[Source "ChessBase"]
[SourceQuality "1"]
[TimeControl "40/5400+30:900+30"]

1. d4 {[%emt 0:06:40]} d6 {[%emt 0:00:00]} 2. c4 {[%emt 0:00:15]} Nf6 {[%emt 0:00:10]} 3. Nc3 {[%emt 0:00:36]} c6 {[%emt 0:00:07]} 4. g3 {[%emt 0:00:04]} Bf5 {[%emt 0:00:55]} 5. Bg2 {[%emt 0:00:06]} Qa5 {[%emt 0:01:24]} 6. Qd2 {[%emt 0:04:00]} e5 {[%emt 0:05:03]} 7. d5 {[%emt 0:02:53]} cxd5 {[%emt 0:02:21]} 8. cxd5 {[%emt 0:02:01]} Be7 {[%emt 0:03:09]} 9. e4 {[%emt 0:00:31]} Bg6 {[%emt 0:00:58]} 10. Nge2 {[%emt 0:00:43]} Nbd7 {[%emt 0:10:24]} 11. Rb1 {[%emt 0:08:23]} a6 {[%emt 0:04:46]} 12. O-O {[%emt 0:10:31]} O-O {[%emt 0:00:46]} 13. h3 {[%emt 0:03:45]} b5 {[%emt 0:03:20]} 14. b4 {[%emt 0:00:28]} Qc7 {[%emt 0:00:16]} 15. f4 {[%emt 0:00:47]} exf4 {[%emt 0:01:05]} 16. gxf4 {[%emt 0:00:13]} Rac8 {[%emt 0:04:41]} 17. Rb3 {[%emt 0:01:49]} Qb6+ {[%emt 0:06:20]} 18. Kh2 {[%emt 0:02:15]} Rc4 {[%emt 0:00:40]} 19. Qd3 {[%emt 0:02:55]} Rfc8 {[%emt 0:02:43]} 20. Be3 {[%emt 0:01:00]} Qc7 {[%emt 0:00:42]} 21. Bd4 {[%emt 0:00:38]} h5 {[%emt 0:01:50]} 22. Qe3 {[%emt 0:02:36]} h4 {[%emt 0:02:07]} 23. Kh1 {[%emt 0:10:04]} Bh5 {[%emt 0:00:49]} 24. e5 {[%emt 0:02:02]} Ne8 {[%emt 0:06:30]} 25. e6 {[%emt 0:00:35]} Ndf6 {[%emt 0:01:32]} 26. f5 {[%emt 0:00:06]} Bxe2 {[%emt 0:02:09]} 27. Nxe2 {[%emt 0:00:02]} Nh5 {[%emt 0:04:32]} 28. Bf3 {[%emt 0:06:23]} Ng3+ {[%emt 0:01:27]} 29. Nxg3 {[%emt 0:00:05]} hxg3 {[%emt 0:00:34]} 30. Bh5 {[%emt 0:00:05]} f6 {[%emt 0:02:36]} 31. Bb2 {[%emt 0:21:12]} Rc2 {[%emt 0:02:38]} 32. Qxg3 {[%emt 0:00:06]} Qc4 {[%emt 0:01:27]} 33. Qf3 {[%emt 0:07:03]} Nc7 {[%emt 0:03:23]} 34. Rd1 {[%emt 0:01:31]} Qh4 {[%emt 0:02:36]} 35. Rg1 {[%emt 0:02:25]} g5 {[%emt 0:03:36]} 36. fxg6 {[%emt 0:01:56]} Kg7 {[%emt 0:00:05]} 37. Bg4 {[%emt 0:00:46]} Qg5 {[%emt 0:03:27]} 38. Bf5 {[%emt 0:00:13]} Rxb2 {[%emt 0:05:14]} 39. Rxb2 {[%emt 0:00:22]} Qh4 {[%emt 0:00:44]} 40. Rc2 {[%emt 0:00:00]} Qxb4 {[%emt 0:00:00]} 41. Qh5 {[%emt 0:01:05]} Rh8 {[%emt 0:02:33]} 42. Qxh8+ {[%emt 0:00:20]} 1-0